[Event "Titled Tuesday Blitz January 03 Late 2023"]
[White "Naroditsky, Daniel"]
[Black "Borges Feria, Yasel"]
[WhiteFideId "2026961"]
[BlackFideId "3504921"]
[WhiteElo "2618"]
[BlackElo "2439"]
[Result "1-0"]
[Round "03"]
[TimeControl "180+2"]
[Date "2023.01.03"]
[WhiteClock "0:00:17"]
[BlackClock "0:00:04"]

1. e4 {[%clk 0:02:51]}  e5 {[%clk 0:02:59]} 2. Nf3 {[%clk 0:02:51]}  Nc6 {[%clk 0:03:00]} 3. Bb5 {[%clk 0:02:52]}  a6 {[%clk 0:02:59]} 4. Ba4 {[%clk 0:02:53]}  Nf6 {[%clk 0:02:59]} 5. O-O {[%clk 0:02:53]}  Be7 {[%clk 0:03:00]} 6. Re1 {[%clk 0:02:54]}  b5 {[%clk 0:02:59]} 7. Bb3 {[%clk 0:02:54]}  d6 {[%clk 0:03:00]} 8. c3 {[%clk 0:02:55]}  O-O {[%clk 0:03:00]} 9. h3 {[%clk 0:02:55]}  a5 {[%clk 0:03:00]} 10. d4 {[%clk 0:02:52]}  a4 {[%clk 0:02:59]} 11. Bc2 {[%clk 0:02:52]}  Bd7 {[%clk 0:02:58]} 12. Nbd2 {[%clk 0:02:45]}  Re8 {[%clk 0:02:58]} 13. Nf1 {[%clk 0:02:45]}  h6 {[%clk 0:02:58]} 14. Ng3 {[%clk 0:02:45]}  Bf8 {[%clk 0:02:59]} 15. d5 {[%clk 0:02:34]}  Ne7 {[%clk 0:02:56]} 16. Be3 {[%clk 0:02:30]}  c6 {[%clk 0:02:50]} 17. dxc6 {[%clk 0:02:30]}  Bxc6 {[%clk 0:02:51]} 18. b3 {[%clk 0:02:21]}  axb3 {[%clk 0:02:48]} 19. axb3 {[%clk 0:02:21]}  Qc7 {[%clk 0:02:48]} 20. c4 {[%clk 0:02:17]}  bxc4 {[%clk 0:02:47]} 21. bxc4 {[%clk 0:02:18]}  Rxa1 {[%clk 0:02:41]} 22. Qxa1 {[%clk 0:02:19]}  Ra8 {[%clk 0:02:36]} 23. Qc3 {[%clk 0:02:16]}  Rb8 {[%clk 0:02:30]} 24. c5 {[%clk 0:02:15]}  Ng6 {[%clk 0:02:21]} 25. cxd6 {[%clk 0:02:14]}  Bxd6 {[%clk 0:02:22]} 26. Rd1 {[%clk 0:02:08]}  Bf8 {[%clk 0:02:18]} 27. Ba4 {[%clk 0:02:03]}  Rc8 {[%clk 0:01:25]} 28. Rc1 {[%clk 0:02:02]}  Bxa4 {[%clk 0:01:24]} 29. Qxc7 {[%clk 0:02:00]}  Rxc7 {[%clk 0:01:25]} 30. Rxc7 {[%clk 0:02:01]}  Ne8 {[%clk 0:01:20]} 31. Ra7 {[%clk 0:01:56]}  Bc6 {[%clk 0:01:16]} 32. Nd2 {[%clk 0:01:55]}  Nf4 {[%clk 0:01:13]} 33. Bxf4 {[%clk 0:01:49]}  exf4 {[%clk 0:01:14]} 34. Nf5 {[%clk 0:01:49]}  Bc5 {[%clk 0:01:09]} 35. Ne7+ {[%clk 0:01:49]}  Bxe7 {[%clk 0:01:02]} 36. Rxe7 {[%clk 0:01:50]}  Kf8 {[%clk 0:01:03]} 37. Ra7 {[%clk 0:01:49]}  Nd6 {[%clk 0:00:58]} 38. Ra6 {[%clk 0:01:47]}  Nxe4 {[%clk 0:00:55]} 39. Nxe4 {[%clk 0:01:39]}  Bxe4 {[%clk 0:00:56]} 40. Ra4 {[%clk 0:01:39]}  Bd5 {[%clk 0:00:50]} 41. Rxf4 {[%clk 0:01:38]}  Be6 {[%clk 0:00:51]} 42. Rb4 {[%clk 0:01:38]}  g5 {[%clk 0:00:48]} 43. f4 {[%clk 0:01:36]}  Kg7 {[%clk 0:00:49]} 44. Kf2 {[%clk 0:01:35]}  gxf4 {[%clk 0:00:45]} 45. Rxf4 {[%clk 0:01:35]}  Kg6 {[%clk 0:00:46]} 46. Ke3 {[%clk 0:01:34]}  f6 {[%clk 0:00:43]} 47. Kd4 {[%clk 0:01:27]}  Kg5 {[%clk 0:00:43]} 48. Rf2 {[%clk 0:01:27]}  h5 {[%clk 0:00:41]} 49. Kc5 {[%clk 0:01:27]}  h4 {[%clk 0:00:35]} 50. Kd6 {[%clk 0:01:27]}  Bc4 {[%clk 0:00:31]} 51. Ke7 {[%clk 0:01:22]}  f5 {[%clk 0:00:31]} 52. Kd6 {[%clk 0:01:23]}  Bd3 {[%clk 0:00:30]} 53. Ke5 {[%clk 0:01:19]}  Be4 {[%clk 0:00:30]} 54. Re2 {[%clk 0:01:20]}  Bd3 {[%clk 0:00:30]} 55. Rd2 {[%clk 0:01:14]}  Be4 {[%clk 0:00:28]} 56. Rf2 {[%clk 0:01:15]}  Bd3 {[%clk 0:00:25]} 57. Kd4 {[%clk 0:01:15]}  Be4 {[%clk 0:00:25]} 58. Ke3 {[%clk 0:01:16]}  Bd5 {[%clk 0:00:24]} 59. Rd2 {[%clk 0:01:16]}  Be4 {[%clk 0:00:24]} 60. Kf2 {[%clk 0:01:17]}  Kf4 {[%clk 0:00:23]} 61. Rd8 {[%clk 0:01:15]}  Kg5 {[%clk 0:00:24]} 62. Rg8+ {[%clk 0:01:15]}  Kf6 {[%clk 0:00:24]} 63. g4 {[%clk 0:01:00]}  hxg3+ {[%clk 0:00:22]} 64. Rxg3 {[%clk 0:00:55]}  f4 {[%clk 0:00:22]} 65. Rg8 {[%clk 0:00:52]}  Bf5 {[%clk 0:00:20]} 66. h4 {[%clk 0:00:51]}  Kf7 {[%clk 0:00:19]} 67. Rg5 {[%clk 0:00:50]}  Be4 {[%clk 0:00:18]} 68. Rg4 {[%clk 0:00:50]}  Bc6 {[%clk 0:00:17]} 69. Rxf4+ {[%clk 0:00:49]}  Kg6 {[%clk 0:00:18]} 70. Rd4 {[%clk 0:00:47]}  Kh5 {[%clk 0:00:18]} 71. Kg3 {[%clk 0:00:47]}  Bh1 {[%clk 0:00:15]} 72. Rc4 {[%clk 0:00:47]}  Kh6 {[%clk 0:00:15]} 73. Rc5 {[%clk 0:00:48]}  Ba8 {[%clk 0:00:14]} 74. Kg4 {[%clk 0:00:47]}  Bg2 {[%clk 0:00:14]} 75. Rb5 {[%clk 0:00:45]}  Bf1 {[%clk 0:00:14]} 76. Rb6+ {[%clk 0:00:45]}  Kg7 {[%clk 0:00:14]} 77. Kg5 {[%clk 0:00:46]}  Bd3 {[%clk 0:00:14]} 78. Rb7+ {[%clk 0:00:46]}  Kh8 {[%clk 0:00:13]} 79. Kh6 {[%clk 0:00:45]}  Bc4 {[%clk 0:00:13]} 80. h5 {[%clk 0:00:41]}  Bg8 {[%clk 0:00:12]} 81. Kg6 {[%clk 0:00:40]}  Bd5 {[%clk 0:00:11]} 82. Re7 {[%clk 0:00:39]}  Bc6 {[%clk 0:00:02]} 83. h6 {[%clk 0:00:27]}  Bd5 {[%clk 0:00:03]} 84. h7 {[%clk 0:00:24]}  Be4+ {[%clk 0:00:03]} 85. Kh6 {[%clk 0:00:24]}  Bg6 {[%clk 0:00:03]} 86. Rd7 {[%clk 0:00:18]}  Be8 {[%clk 0:00:04]} 87. Rb7 {[%clk 0:00:16]}  Bd7 {[%clk 0:00:03]} 88. Rb8+ {[%clk 0:00:17]}  Bc8 {[%clk 0:00:04]} 89. Rxc8# {[%clk 0:00:17]} 1-0


[Site "https://www.chess.com"]

[Event "Titled Tuesday Blitz January 03 Late 2023"]
[White "Kadric, Denis"]
[Black "Martinez Alcantara, Jose Eduardo"]
[WhiteFideId "14403803"]
[BlackFideId "3805662"]
[WhiteElo "2601"]
[BlackElo "2619"]
[Result "1/2-1/2"]
[Round "03"]
[TimeControl "180+2"]
[Date "2023.01.03"]
[WhiteClock "0:00:27"]
[BlackClock "0:00:17"]

1. e4 {[%clk 0:02:55]}  e5 {[%clk 0:03:00]} 2. Nf3 {[%clk 0:02:55]}  Nf6 {[%clk 0:03:00]} 3. d3 {[%clk 0:02:36]}  Nc6 {[%clk 0:02:58]} 4. c3 {[%clk 0:02:36]}  d6 {[%clk 0:02:57]} 5. g3 {[%clk 0:02:35]}  g6 {[%clk 0:02:58]} 6. Bg2 {[%clk 0:02:36]}  Bg7 {[%clk 0:02:58]} 7. O-O {[%clk 0:02:36]}  O-O {[%clk 0:02:58]} 8. b4 {[%clk 0:02:37]}  a5 {[%clk 0:02:47]} 9. b5 {[%clk 0:02:37]}  Nb8 {[%clk 0:02:48]} 10. a4 {[%clk 0:02:37]}  Nbd7 {[%clk 0:02:48]} 11. Re1 {[%clk 0:02:38]}  Re8 {[%clk 0:02:41]} 12. Nbd2 {[%clk 0:02:36]}  b6 {[%clk 0:02:37]} 13. d4 {[%clk 0:02:33]}  Bb7 {[%clk 0:02:36]} 14. d5 {[%clk 0:01:58]}  h6 {[%clk 0:02:21]} 15. Nb3 {[%clk 0:01:58]}  Rf8 {[%clk 0:02:11]} 16. c4 {[%clk 0:01:57]}  Bc8 {[%clk 0:02:10]} 17. Nh4 {[%clk 0:01:56]}  Kh7 {[%clk 0:02:06]} 18. h3 {[%clk 0:01:56]}  Ng8 {[%clk 0:02:06]} 19. Bf1 {[%clk 0:01:53]}  Bf6 {[%clk 0:02:06]} 20. Ng2 {[%clk 0:01:53]}  Bg5 {[%clk 0:01:59]} 21. Ne3 {[%clk 0:01:47]}  h5 {[%clk 0:01:47]} 22. Nd2 {[%clk 0:01:28]}  Bh6 {[%clk 0:01:46]} 23. h4 {[%clk 0:01:15]}  Nc5 {[%clk 0:01:43]} 24. Qc2 {[%clk 0:01:14]}  Nf6 {[%clk 0:01:36]} 25. Bg2 {[%clk 0:01:11]}  Qe7 {[%clk 0:01:15]} 26. Nb3 {[%clk 0:01:10]}  Nb7 {[%clk 0:01:07]} 27. Bd2 {[%clk 0:01:09]}  Bd7 {[%clk 0:01:06]} 28. Rf1 {[%clk 0:01:08]}  Rae8 {[%clk 0:01:06]} 29. Rae1 {[%clk 0:01:08]}  Qd8 {[%clk 0:01:06]} 30. f3 {[%clk 0:01:03]}  Ng8 {[%clk 0:01:03]} 31. Nd1 {[%clk 0:00:52]}  Bxd2 {[%clk 0:01:02]} 32. Qxd2 {[%clk 0:00:53]}  f6 {[%clk 0:01:00]} 33. Kh2 {[%clk 0:00:46]}  f5 {[%clk 0:00:45]} 34. exf5 {[%clk 0:00:43]}  gxf5 {[%clk 0:00:45]} 35. f4 {[%clk 0:00:43]}  e4 {[%clk 0:00:34]} 36. Ne3 {[%clk 0:00:41]}  Qf6 {[%clk 0:00:27]} 37. Bh3 {[%clk 0:00:39]}  Nh6 {[%clk 0:00:25]} 38. Rg1 {[%clk 0:00:34]}  Rg8 {[%clk 0:00:24]} 39. Re2 {[%clk 0:00:28]}  Rg7 {[%clk 0:00:24]} 40. Reg2 {[%clk 0:00:28]}  Reg8 {[%clk 0:00:24]} 41. Qe1 {[%clk 0:00:26]}  Qg6 {[%clk 0:00:19]} 42. Qd2 {[%clk 0:00:25]}  Rf7 {[%clk 0:00:19]} 43. Qe1 {[%clk 0:00:25]}  Rgf8 {[%clk 0:00:20]} 44. Qd2 {[%clk 0:00:26]}  Ng8 {[%clk 0:00:20]} 45. Qe1 {[%clk 0:00:24]}  Nh6 {[%clk 0:00:18]} 46. Qd2 {[%clk 0:00:24]}  Re8 {[%clk 0:00:18]} 47. Qe1 {[%clk 0:00:25]}  Rg8 {[%clk 0:00:16]} 48. Qd2 {[%clk 0:00:25]}  Kg7 {[%clk 0:00:16]} 49. Qe1 {[%clk 0:00:25]}  Kf8 {[%clk 0:00:17]} 50. Qd2 {[%clk 0:00:25]}  Rgg7 {[%clk 0:00:15]} 51. Qe1 {[%clk 0:00:25]}  Kg8 {[%clk 0:00:15]} 52. Qd2 {[%clk 0:00:26]}  Kf8 {[%clk 0:00:15]} 53. Qe1 {[%clk 0:00:27]}  Kg8 {[%clk 0:00:16]} 54. Qd2 {[%clk 0:00:27]}  Kf8 {[%clk 0:00:17]} 1/2-1/2


[Site "https://www.chess.com"]

[Event "Titled Tuesday Blitz January 03 Late 2023"]
[White "Paravyan, David"]
[Black "Riehle, Marco"]
[WhiteFideId "4194985"]
[BlackFideId "12904392"]
[WhiteElo "2601"]
[BlackElo "2368"]
[Result "1-0"]
[Round "03"]
[TimeControl "180+2"]
[Date "2023.01.03"]
[WhiteClock "0:01:08"]
[BlackClock "0:00:45"]

1. e4 {[%clk 0:03:00]}  e5 {[%clk 0:03:00]} 2. Nf3 {[%clk 0:03:01]}  Nf6 {[%clk 0:03:00]} 3. Nc3 {[%clk 0:03:01]}  Nc6 {[%clk 0:02:59]} 4. d4 {[%clk 0:03:02]}  exd4 {[%clk 0:03:00]} 5. Nxd4 {[%clk 0:03:02]}  Nxe4 {[%clk 0:03:00]} 6. Nxe4 {[%clk 0:03:01]}  Qe7 {[%clk 0:03:00]} 7. Bd3 {[%clk 0:02:49]}  Nxd4 {[%clk 0:02:58]} 8. O-O {[%clk 0:02:49]}  d5 {[%clk 0:02:48]} 9. Bc4 {[%clk 0:02:49]}  dxe4 {[%clk 0:02:34]} 10. Qxd4 {[%clk 0:02:48]}  Be6 {[%clk 0:02:30]} 11. Qxe4 {[%clk 0:02:45]}  Bxc4 {[%clk 0:02:30]} 12. Qxb7 {[%clk 0:02:10]}  Rd8 {[%clk 0:01:56]} 13. Qc6+ {[%clk 0:02:09]}  Qd7 {[%clk 0:01:56]} 14. Qxc4 {[%clk 0:02:05]}  Be7 {[%clk 0:01:56]} 15. Be3 {[%clk 0:02:01]}  O-O {[%clk 0:01:53]} 16. a4 {[%clk 0:01:56]}  Bf6 {[%clk 0:01:45]} 17. c3 {[%clk 0:01:52]}  a5 {[%clk 0:01:35]} 18. h3 {[%clk 0:01:52]}  Be5 {[%clk 0:01:21]} 19. Qb5 {[%clk 0:01:38]}  Qe6 {[%clk 0:00:59]} 20. Rfe1 {[%clk 0:01:34]}  Rd5 {[%clk 0:00:57]} 21. Qc4 {[%clk 0:01:17]}  Qd7 {[%clk 0:00:51]} 22. Qe4 {[%clk 0:01:14]}  Rd8 {[%clk 0:00:46]} 23. c4 {[%clk 0:01:08]}  f5 {[%clk 0:00:45]} 24. Qxd5+ {[%clk 0:01:08]} 1-0


[Site "https://www.chess.com"]

[Event "Titled Tuesday Blitz January 03 Late 2023"]
[White "Pranav, V"]
[Black "Cristobal, Manuel"]
[WhiteFideId "25060783"]
[BlackFideId "112879"]
[WhiteElo "2597"]
[BlackElo "2257"]
[Result "1-0"]
[Round "03"]
[TimeControl "180+2"]
[Date "2023.01.03"]
[WhiteClock "0:00:10"]
[BlackClock "0:00:28"]

1. e4 {[%clk 0:03:00]}  Nc6 {[%clk 0:02:58]} 2. d4 {[%clk 0:02:59]}  e5 {[%clk 0:02:57]} 3. d5 {[%clk 0:02:57]}  Nce7 {[%clk 0:02:58]} 4. Nf3 {[%clk 0:02:56]}  Ng6 {[%clk 0:02:58]} 5. h4 {[%clk 0:02:55]}  h5 {[%clk 0:02:57]} 6. Nc3 {[%clk 0:02:53]}  Nf6 {[%clk 0:02:56]} 7. Ng5 {[%clk 0:02:51]}  Bc5 {[%clk 0:02:54]} 8. f3 {[%clk 0:02:47]}  c6 {[%clk 0:02:52]} 9. dxc6 {[%clk 0:02:42]}  bxc6 {[%clk 0:02:50]} 10. Bc4 {[%clk 0:02:42]}  O-O {[%clk 0:02:43]} 11. Bb3 {[%clk 0:02:41]}  Ba6 {[%clk 0:02:30]} 12. Na4 {[%clk 0:02:38]}  Bb4+ {[%clk 0:02:21]} 13. c3 {[%clk 0:02:38]}  Ba5 {[%clk 0:02:19]} 14. Be3 {[%clk 0:02:34]}  d5 {[%clk 0:02:12]} 15. Nc5 {[%clk 0:02:34]}  Bb6 {[%clk 0:01:57]} 16. Kf2 {[%clk 0:02:34]}  Qc8 {[%clk 0:01:53]} 17. Qc2 {[%clk 0:02:10]}  Nf4 {[%clk 0:01:40]} 18. Rad1 {[%clk 0:02:05]}  Rd8 {[%clk 0:01:24]} 19. g3 {[%clk 0:02:04]}  Ng6 {[%clk 0:01:23]} 20. Kg2 {[%clk 0:02:03]}  Nf8 {[%clk 0:01:23]} 21. Rhe1 {[%clk 0:02:01]}  Bxc5 {[%clk 0:01:20]} 22. Bxc5 {[%clk 0:02:01]}  N8d7 {[%clk 0:01:19]} 23. Bd6 {[%clk 0:01:57]}  Bc4 {[%clk 0:01:17]} 24. Bxc4 {[%clk 0:01:50]}  dxc4 {[%clk 0:01:17]} 25. f4 {[%clk 0:01:50]}  Ng4 {[%clk 0:01:13]} 26. Qe2 {[%clk 0:01:40]}  Nb6 {[%clk 0:01:06]} 27. Bc5 {[%clk 0:01:40]}  exf4 {[%clk 0:01:05]} 28. gxf4 {[%clk 0:01:39]}  Qa6 {[%clk 0:01:02]} 29. Kg3 {[%clk 0:01:25]}  Qxa2 {[%clk 0:00:59]} 30. e5 {[%clk 0:01:11]}  Re8 {[%clk 0:00:51]} 31. Qc2 {[%clk 0:01:05]}  g6 {[%clk 0:00:50]} 32. Bxb6 {[%clk 0:00:43]}  axb6 {[%clk 0:00:49]} 33. Rd7 {[%clk 0:00:43]}  Qb3 {[%clk 0:00:48]} 34. Qxb3 {[%clk 0:00:37]}  cxb3 {[%clk 0:00:47]} 35. Nxf7 {[%clk 0:00:37]}  Ra2 {[%clk 0:00:42]} 36. Nd6 {[%clk 0:00:37]}  Re6 {[%clk 0:00:41]} 37. Re2 {[%clk 0:00:37]}  Ra1 {[%clk 0:00:39]} 38. Ne4 {[%clk 0:00:31]}  Rg1+ {[%clk 0:00:39]} 39. Rg2 {[%clk 0:00:31]}  Rxg2+ {[%clk 0:00:39]} 40. Kxg2 {[%clk 0:00:32]}  Ne3+ {[%clk 0:00:39]} 41. Kf3 {[%clk 0:00:30]}  Nc4 {[%clk 0:00:40]} 42. Nf6+ {[%clk 0:00:23]}  Kf8 {[%clk 0:00:35]} 43. Ke4 {[%clk 0:00:18]}  Nxb2 {[%clk 0:00:34]} 44. f5 {[%clk 0:00:17]}  gxf5+ {[%clk 0:00:35]} 45. Kxf5 {[%clk 0:00:18]}  Re7 {[%clk 0:00:36]} 46. Rd8+ {[%clk 0:00:14]}  Kf7 {[%clk 0:00:36]} 47. Rh8 {[%clk 0:00:12]}  Nc4 {[%clk 0:00:29]} 48. e6+ {[%clk 0:00:09]}  Rxe6 {[%clk 0:00:29]} 49. Rh7+ {[%clk 0:00:09]}  Kf8 {[%clk 0:00:27]} 50. Kxe6 {[%clk 0:00:09]}  Ne5 {[%clk 0:00:27]} 51. Kxe5 {[%clk 0:00:09]}  b2 {[%clk 0:00:28]} 52. Ke6 {[%clk 0:00:10]}  b1=Q {[%clk 0:00:28]} 53. Rf7# {[%clk 0:00:10]} 1-0


[Site "https://www.chess.com"]

[Event "Titled Tuesday Blitz January 03 Late 2023"]
[White "Aradhya, Garg"]
[Black "Bluebaum, Matthias"]
[WhiteFideId "25006746"]
[BlackFideId "24651516"]
[WhiteElo "2284"]
[BlackElo "2669"]
[Result "0-1"]
[Round "03"]
[TimeControl "180+2"]
[Date "2023.01.03"]
[WhiteClock "0:00:02"]
[BlackClock "0:01:07"]

1. d4 {[%clk 0:03:00]}  d5 {[%clk 0:03:00]} 2. c4 {[%clk 0:02:59]}  e6 {[%clk 0:03:00]} 3. Nf3 {[%clk 0:02:58]}  Nf6 {[%clk 0:02:58]} 4. e3 {[%clk 0:02:58]}  a6 {[%clk 0:02:58]} 5. b3 {[%clk 0:02:55]}  c5 {[%clk 0:02:57]} 6. Bb2 {[%clk 0:02:51]}  cxd4 {[%clk 0:02:58]} 7. exd4 {[%clk 0:02:50]}  Bb4+ {[%clk 0:02:57]} 8. Nbd2 {[%clk 0:02:49]}  O-O {[%clk 0:02:58]} 9. Bd3 {[%clk 0:02:46]}  dxc4 {[%clk 0:02:59]} 10. bxc4 {[%clk 0:02:46]}  b5 {[%clk 0:02:59]} 11. O-O {[%clk 0:02:44]}  Bb7 {[%clk 0:02:59]} 12. cxb5 {[%clk 0:02:43]}  axb5 {[%clk 0:03:00]} 13. Qe2 {[%clk 0:02:25]}  Qd5 {[%clk 0:02:19]} 14. a3 {[%clk 0:02:11]}  Bxd2 {[%clk 0:02:14]} 15. Qxd2 {[%clk 0:02:10]}  Nc6 {[%clk 0:02:14]} 16. Rac1 {[%clk 0:02:07]}  Na5 {[%clk 0:01:52]} 17. Qg5 {[%clk 0:01:37]}  Qxg5 {[%clk 0:01:42]} 18. Nxg5 {[%clk 0:01:37]}  Nc4 {[%clk 0:01:43]} 19. Rc2 {[%clk 0:01:20]}  h6 {[%clk 0:01:36]} 20. Nh3 {[%clk 0:01:10]}  Nd5 {[%clk 0:01:37]} 21. Rfc1 {[%clk 0:01:03]}  Rfb8 {[%clk 0:01:22]} 22. Bxc4 {[%clk 0:01:00]}  bxc4 {[%clk 0:01:23]} 23. Rxc4 {[%clk 0:00:59]}  Ba6 {[%clk 0:01:23]} 24. R4c2 {[%clk 0:00:59]}  Bd3 {[%clk 0:01:24]} 25. Rd2 {[%clk 0:00:59]}  Bf5 {[%clk 0:01:25]} 26. f3 {[%clk 0:00:37]}  Bxh3 {[%clk 0:01:16]} 27. gxh3 {[%clk 0:00:38]}  Nf4 {[%clk 0:01:16]} 28. h4 {[%clk 0:00:33]}  Rb3 {[%clk 0:01:16]} 29. d5 {[%clk 0:00:24]}  exd5 {[%clk 0:01:12]} 30. Rc3 {[%clk 0:00:17]}  Rxc3 {[%clk 0:01:10]} 31. Bxc3 {[%clk 0:00:18]}  Rxa3 {[%clk 0:01:10]} 32. Be5 {[%clk 0:00:16]}  Rxf3 {[%clk 0:01:10]} 33. h3 {[%clk 0:00:07]}  f6 {[%clk 0:01:10]} 34. Bd6 {[%clk 0:00:06]}  d4 {[%clk 0:01:05]} 35. Bxf4 {[%clk 0:00:03]}  Rxf4 {[%clk 0:01:06]} 36. h5 {[%clk 0:00:02]}  Rf5 {[%clk 0:01:06]} 37. Kg2 {[%clk 0:00:03]}  Rxh5 {[%clk 0:01:06]} 38. Rxd4 {[%clk 0:00:02]}  Ra5 {[%clk 0:01:07]} 39. Rd7 {[%clk 0:00:02]}  Kh7 {[%clk 0:01:07]} 40. h4 {[%clk 0:00:02]}  Kg6 {[%clk 0:01:07]} 0-1


[Site "https://www.chess.com"]

[Event "Titled Tuesday Blitz January 03 Late 2023"]
[White "Keymer, Vincent"]
[Black "Salimova, Nurgyul"]
[WhiteFideId "12940690"]
[BlackFideId "2915138"]
[WhiteElo "2700"]
[BlackElo "2391"]
[Result "1-0"]
[Round "03"]
[TimeControl "180+2"]
[Date "2023.01.03"]
[WhiteClock "0:00:04"]
[BlackClock "0:00:01"]

1. a3 {[%clk 0:03:00]}  a6 {[%clk 0:02:54]} 2. Nf3 {[%clk 0:02:58]}  Nf6 {[%clk 0:02:54]} 3. g3 {[%clk 0:02:55]}  g6 {[%clk 0:02:54]} 4. Bg2 {[%clk 0:02:56]}  Bg7 {[%clk 0:02:55]} 5. O-O {[%clk 0:02:56]}  O-O {[%clk 0:02:56]} 6. d4 {[%clk 0:02:56]}  c6 {[%clk 0:02:54]} 7. c4 {[%clk 0:02:53]}  d5 {[%clk 0:02:54]} 8. Nc3 {[%clk 0:02:43]}  dxc4 {[%clk 0:02:51]} 9. e4 {[%clk 0:02:43]}  b5 {[%clk 0:02:49]} 10. Qe2 {[%clk 0:02:43]}  Bb7 {[%clk 0:02:46]} 11. Rd1 {[%clk 0:02:41]}  e6 {[%clk 0:02:39]} 12. h4 {[%clk 0:02:31]}  Nbd7 {[%clk 0:02:36]} 13. e5 {[%clk 0:02:17]}  Nd5 {[%clk 0:02:35]} 14. Nxd5 {[%clk 0:01:50]}  cxd5 {[%clk 0:02:13]} 15. Bg5 {[%clk 0:01:30]}  Qb6 {[%clk 0:02:06]} 16. Qe3 {[%clk 0:01:28]}  a5 {[%clk 0:01:55]} 17. h5 {[%clk 0:01:26]}  b4 {[%clk 0:01:50]} 18. Bh3 {[%clk 0:00:57]}  Rac8 {[%clk 0:01:34]} 19. Rac1 {[%clk 0:00:49]}  Rfe8 {[%clk 0:01:25]} 20. Kg2 {[%clk 0:00:48]}  Ba6 {[%clk 0:01:13]} 21. Rh1 {[%clk 0:00:38]}  c3 {[%clk 0:01:11]} 22. bxc3 {[%clk 0:00:36]}  bxa3 {[%clk 0:01:11]} 23. Bh6 {[%clk 0:00:30]}  Bh8 {[%clk 0:00:42]} 24. Ng5 {[%clk 0:00:25]}  Nxe5 {[%clk 0:00:36]} 25. Qf4 {[%clk 0:00:19]}  Qc7 {[%clk 0:00:31]} 26. dxe5 {[%clk 0:00:15]}  Bxe5 {[%clk 0:00:32]} 27. Qh4 {[%clk 0:00:15]}  Bd3 {[%clk 0:00:25]} 28. Bg4 {[%clk 0:00:13]}  Bf6 {[%clk 0:00:21]} 29. Qh3 {[%clk 0:00:13]}  a2 {[%clk 0:00:16]} 30. Nxh7 {[%clk 0:00:11]}  Bxc3 {[%clk 0:00:10]} 31. Bd2 {[%clk 0:00:05]}  Qe5 {[%clk 0:00:06]} 32. Bxc3 {[%clk 0:00:04]}  Rxc3 {[%clk 0:00:06]} 33. hxg6 {[%clk 0:00:03]}  Bxg6 {[%clk 0:00:04]} 34. Rxc3 {[%clk 0:00:03]}  Qxc3 {[%clk 0:00:04]} 35. Qh4 {[%clk 0:00:03]}  a1=Q {[%clk 0:00:01]} 36. Rxa1 {[%clk 0:00:02]}  Qxa1 {[%clk 0:00:02]} 37. Nf6+ {[%clk 0:00:02]}  Kf8 {[%clk 0:00:01]} 38. Qh8+ {[%clk 0:00:02]}  Ke7 {[%clk 0:00:01]} 39. Nxd5+ {[%clk 0:00:03]}  exd5 {[%clk 0:00:01]} 40. Qxa1 {[%clk 0:00:04]}  Be4+ {[%clk 0:00:01]} 41. Bf3 {[%clk 0:00:04]} 1-0


[Site "https://www.chess.com"]

[Event "Titled Tuesday Blitz January 03 Late 2023"]
[White "Tristan, Leonardo"]
[Black "Lazavik, Denis"]
[WhiteFideId "113816"]
[BlackFideId "13515110"]
[WhiteElo "2545"]
[BlackElo "2544"]
[Result "0-1"]
[Round "03"]
[TimeControl "180+2"]
[Date "2023.01.03"]
[WhiteClock "0:00:40"]
[BlackClock "0:01:52"]

1. d4 {[%clk 0:03:00]}  Nf6 {[%clk 0:03:00]} 2. Nf3 {[%clk 0:03:01]}  d5 {[%clk 0:02:59]} 3. Bf4 {[%clk 0:03:01]}  c5 {[%clk 0:02:59]} 4. e3 {[%clk 0:03:01]}  Nc6 {[%clk 0:02:59]} 5. Nbd2 {[%clk 0:03:01]}  Bg4 {[%clk 0:03:00]} 6. c3 {[%clk 0:03:00]}  e6 {[%clk 0:03:00]} 7. Qb3 {[%clk 0:03:00]}  Qc8 {[%clk 0:03:00]} 8. h3 {[%clk 0:03:00]}  Bh5 {[%clk 0:03:00]} 9. Nh4 {[%clk 0:03:01]}  Be7 {[%clk 0:02:58]} 10. g4 {[%clk 0:03:01]}  Bg6 {[%clk 0:02:59]} 11. Nxg6 {[%clk 0:03:01]}  hxg6 {[%clk 0:02:59]} 12. Bg2 {[%clk 0:03:02]}  cxd4 {[%clk 0:02:59]} 13. exd4 {[%clk 0:02:52]}  Qd7 {[%clk 0:02:59]} 14. O-O {[%clk 0:02:32]}  Bd6 {[%clk 0:02:56]} 15. Be3 {[%clk 0:02:08]}  Qc7 {[%clk 0:02:40]} 16. f4 {[%clk 0:02:07]}  O-O {[%clk 0:02:36]} 17. Rae1 {[%clk 0:02:05]}  b5 {[%clk 0:02:34]} 18. Qd1 {[%clk 0:02:00]}  Na5 {[%clk 0:02:25]} 19. Qf3 {[%clk 0:01:56]}  b4 {[%clk 0:02:23]} 20. cxb4 {[%clk 0:01:49]}  Bxb4 {[%clk 0:02:22]} 21. a3 {[%clk 0:01:50]}  Bxd2 {[%clk 0:02:21]} 22. Bxd2 {[%clk 0:01:50]}  Nc4 {[%clk 0:02:20]} 23. Bc1 {[%clk 0:01:50]}  Nd6 {[%clk 0:02:16]} 24. h4 {[%clk 0:01:36]}  Qb6 {[%clk 0:02:14]} 25. h5 {[%clk 0:01:30]}  gxh5 {[%clk 0:02:09]} 26. gxh5 {[%clk 0:01:27]}  Qxd4+ {[%clk 0:02:09]} 27. Be3 {[%clk 0:01:27]}  Qxb2 {[%clk 0:02:08]} 28. h6 {[%clk 0:01:27]}  g6 {[%clk 0:02:04]} 29. Rd1 {[%clk 0:01:21]}  Nf5 {[%clk 0:02:03]} 30. Bc1 {[%clk 0:01:12]}  Qb6+ {[%clk 0:02:00]} 31. Kh2 {[%clk 0:01:10]}  Rac8 {[%clk 0:01:59]} 32. Bh3 {[%clk 0:00:46]}  Rc2+ {[%clk 0:01:57]} 33. Rd2 {[%clk 0:00:46]}  Rfc8 {[%clk 0:01:54]} 34. Bxf5 {[%clk 0:00:46]}  exf5 {[%clk 0:01:53]} 35. Qd1 {[%clk 0:00:40]}  Rxc1 {[%clk 0:01:52]} 0-1


[Site "https://www.chess.com"]

[Event "Titled Tuesday Blitz January 03 Late 2023"]
[White "Godzwon, Iwo"]
[Black "Liascovich, Lucas"]
[WhiteFideId "21802483"]
[BlackFideId "108634"]
[WhiteElo "2394"]
[BlackElo "2411"]
[Result "0-1"]
[Round "03"]
[TimeControl "180+2"]
[Date "2023.01.03"]
[WhiteClock "0:00:35"]
[BlackClock "0:00:47"]

1. e4 {[%clk 0:03:00]}  e5 {[%clk 0:02:57]} 2. Nf3 {[%clk 0:02:56]}  Nc6 {[%clk 0:02:58]} 3. Bb5 {[%clk 0:02:56]}  d6 {[%clk 0:02:56]} 4. d4 {[%clk 0:02:54]}  exd4 {[%clk 0:02:57]} 5. Nxd4 {[%clk 0:02:53]}  Bd7 {[%clk 0:02:57]} 6. O-O {[%clk 0:02:53]}  Nf6 {[%clk 0:02:57]} 7. Nc3 {[%clk 0:02:54]}  Be7 {[%clk 0:02:56]} 8. Bg5 {[%clk 0:02:49]}  O-O {[%clk 0:02:56]} 9. Nxc6 {[%clk 0:02:50]}  bxc6 {[%clk 0:02:54]} 10. Ba4 {[%clk 0:02:48]}  Re8 {[%clk 0:02:50]} 11. Qd2 {[%clk 0:02:35]}  h6 {[%clk 0:02:36]} 12. Bf4 {[%clk 0:02:35]}  Bf8 {[%clk 0:02:32]} 13. Rfe1 {[%clk 0:02:33]}  Qb8 {[%clk 0:02:29]} 14. Bb3 {[%clk 0:02:31]}  a5 {[%clk 0:02:27]} 15. a4 {[%clk 0:02:10]}  Qb4 {[%clk 0:02:21]} 16. f3 {[%clk 0:02:06]}  c5 {[%clk 0:02:05]} 17. e5 {[%clk 0:02:06]}  dxe5 {[%clk 0:02:03]} 18. Bxe5 {[%clk 0:02:03]}  c4 {[%clk 0:01:50]} 19. Bxf6 {[%clk 0:01:40]}  gxf6 {[%clk 0:01:46]} 20. Qxd7 {[%clk 0:01:36]}  Rxe1+ {[%clk 0:01:43]} 21. Rxe1 {[%clk 0:01:36]}  cxb3 {[%clk 0:01:44]} 22. cxb3 {[%clk 0:01:36]}  Qxb3 {[%clk 0:01:43]} 23. Qg4+ {[%clk 0:01:21]}  Kh8 {[%clk 0:01:40]} 24. Re2 {[%clk 0:01:14]}  Rd8 {[%clk 0:01:35]} 25. Qf4 {[%clk 0:01:14]}  Rd1+ {[%clk 0:01:30]} 26. Kf2 {[%clk 0:00:46]}  Bc5+ {[%clk 0:01:20]} 27. Re3 {[%clk 0:00:46]}  Qxb2+ {[%clk 0:01:13]} 28. Ne2 {[%clk 0:00:47]}  Qa3 {[%clk 0:01:03]} 29. Qxf6+ {[%clk 0:00:37]}  Kg8 {[%clk 0:01:02]} 30. Nc3 {[%clk 0:00:35]}  Bxe3+ {[%clk 0:00:53]} 31. Kxe3 {[%clk 0:00:36]}  Qc5+ {[%clk 0:00:46]} 32. Ke2 {[%clk 0:00:35]}  Rd6 {[%clk 0:00:47]} 0-1


[Site "https://www.chess.com"]